fUST/lending_fUST_20250708
["ID","MTS","AMOUNT","RATE_DAILY","PERIOD"]
[370372907,1751983865150,-2119.43,0.00021917,2]
[370372908,1751983865163,-566.22,0.00021917,2]
[370372909,1751983865172,-1205.75,0.00021917,2]
[370372910,1751983865183,-460.0,0.00021917,2]
[370372911,1751983865192,-1948.08,0.00021917,2]
[370372912,1751983865202,-460.0,0.00021917,2]
[370372913,1751983865212,-2272.9,0.00021917,2]
[370372914,1751983865222,-4616.11,0.00021917,2]
[370372915,1751983865232,-4247.65,0.00021917,2]
[370372916,1751983865241,-460.0,0.00021917,2]
[370372917,1751983865252,-514.3,0.00021917,2]
[370372918,1751983865266,-653.52,0.00021917,2]
[370372919,1751983865278,-944.07,0.00021917,2]
[370372920,1751983865287,-151.0,0.00021917,2]
[370372921,1751983865297,-847.56,0.00021917,2]
[370372922,1751983865307,-8781.99,0.00021917,2]
[370372923,1751983865317,-500.52,0.00021917,2]
[370372924,1751983865326,-1078.93,0.00021917,2]
[370372925,1751983865336,-1410.35,0.00021917,2]
[370372926,1751983865344,-550.37925172,0.00021917,2]
[370372927,1751983865353,-460.0,0.00021917,2]
[370372928,1751983865362,-4842.26,0.00021917,2]
[370372929,1751983865371,-1487.97,0.00021917,2]
[370372930,1751983865380,-1632.92,0.00021917,2]
[370372931,1751983865390,-1835.67,0.00021917,2]
[370372932,1751983865399,-2207.44,0.00021917,2]
[370372933,1751983865410,-460.0,0.00021917,2]
[370372934,1751983865420,-151.0,0.00021918,2]
[370372935,1751983865430,-400.0,0.00021918,7]
[370372936,1751983865439,-150.0,0.00021918,2]
[370372937,1751983865449,-150.0,0.00021918,2]
[370372938,1751983865459,-200.0,0.00021918,2]
[370372939,1751983865468,-151.0,0.00021918,7]
[370372940,1751983865478,-500.0,0.00021918,2]
[370372941,1751983865487,-500.0,0.00021918,2]
[370372942,1751983865496,-500.0,0.00021918,2]
[370372943,1751983865506,-500.0,0.00021918,2]
[370372944,1751983865516,-500.0,0.00021918,2]
[370372945,1751983865525,-500.0,0.00021918,2]
[370372946,1751983865535,-500.0,0.00021918,2]
[370372947,1751983865545,-500.0,0.00021918,2]
[370372948,1751983865555,-500.0,0.00021918,2]
[370372949,1751983865564,-500.0,0.00021918,2]
[370372950,1751983865575,-500.0,0.00021918,2]
[370372951,1751983865585,-500.0,0.00021918,2]
[370372952,1751983865594,-500.0,0.00021918,2]
[370372953,1751983865605,-500.0,0.00021918,2]
[370372954,1751983865615,-500.0,0.00021918,2]
[370372955,1751983865624,-500.0,0.00021918,2]
[370372956,1751983865634,-500.0,0.00021918,2]
[370372957,1751983865644,-500.0,0.00021918,2]
[370372958,1751983865654,-500.0,0.00021967,2]
[370372959,1751983865665,-319.0409988,0.00021973,2]
[370372960,1751983865675,-576.1435385,0.00021973,2]
[370372961,1751983865684,-181.4397469,0.00021973,2]
[370372962,1751983865693,-153.0,0.00021973,2]
[370372963,1751983865703,-2000.0,0.00022,2]
[370372964,1751983865712,-265.078283,0.00022,7]
[370372965,1751983865721,-265.078283,0.00022,7]
[370372966,1751983865730,-151.0,0.00022023,7]
[370372967,1751983865740,-151.0,0.00022023,7]
[370372968,1751983865749,-151.0,0.00022023,7]
[370372969,1751983865759,-500.0,0.00022061,2]
[370372970,1751983865768,-1500.0,0.0002211,2]
[370372971,1751983865778,-12500.0,0.00022129,2]
[370372972,1751983865788,-12500.0,0.00022138,2]
[370372973,1751983865797,-12500.0,0.00022147,2]
[370372974,1751983865807,-500.0,0.00022155,2]
[370372975,1751983865816,-12500.0,0.00022156,2]
[370372976,1751983865826,-2100.40329265,0.0002216,2]
[370372977,1751983865836,-1003.1370935,0.00022164,2]
[370372978,1751983865846,-1705.54562972,0.00022164,2]
[370372979,1751983865856,-2500.0,0.00022164,2]
[370372980,1751983865865,-3000.0,0.00022164,2]
[370372981,1751983865875,-2500.0,0.00022164,2]
[370372982,1751983865884,-12500.0,0.00022165,2]
[370372983,1751983865894,-151.0,0.00022165,7]
[370372984,1751983865903,-150.0,0.00022173,2]
[370372985,1751983865914,-12500.0,0.00022173,2]
[370372986,1751983865923,-12500.0,0.00022182,2]
[370372987,1751983865932,-151.0,0.00022191,7]
[370372988,1751983865943,-151.0,0.00022191,7]
[370372989,1751983865952,-220.332007,0.00022191,7]
[370372990,1751983865962,-168.3834433,0.00022191,2]
[370372991,1751983866109,-151.0,0.00022191,7]
[370372992,1751983866122,-151.0,0.00022191,7]
[370372993,1751983866131,-608.54,0.00022191,2]
[370372994,1751983866144,-471.73,0.00022191,2]
[370372995,1751983866153,-460.0,0.00022191,2]
[370372996,1751983866165,-12500.0,0.00022191,2]
[370372997,1751983866174,-460.0,0.00022191,2]
[370372998,1751983866185,-460.0,0.00022191,2]
[370372999,1751983866195,-958.86,0.00022191,2]
[370373000,1751983866204,-460.0,0.00022191,2]
[370373001,1751983866213,-636.73,0.00022191,2]
[370373002,1751983866224,-460.0,0.00022191,2]
[370373003,1751983866234,-769.3,0.00022191,2]
[370373004,1751983866245,-638.06,0.00022191,2]
[370373005,1751983866255,-521.04275487,0.00022191,2]
[370373006,1751983866264,-460.0,0.00022191,2]
[370373007,1751983866274,-495.68,0.00022191,2]
[370373008,1751983866283,-397.00921258,0.00022191,2]
[370373009,1751983866293,-460.0,0.00022191,2]
[370373010,1751983866303,-1163.67,0.00022191,2]
[370373011,1751983866312,-460.0,0.00022191,2]
[370373012,1751983866321,-460.0,0.00022191,2]
[370373013,1751983866331,-151.0,0.00022191,7]
[370373014,1751983866340,-151.0,0.00022191,7]
[370373015,1751983866349,-593.12,0.00022191,2]
[370373016,1751983866358,-756.52,0.00022191,2]
[370373017,1751983866369,-488.13,0.00022191,2]
[370373018,1751983866378,-1004.35,0.00022191,2]
[370373019,1751983866388,-460.0,0.00022191,2]
[370373020,1751983866398,-1589.41,0.00022191,2]
[370373021,1751983866407,-460.0,0.00022191,2]
[370373022,1751983866417,-407.07618085,0.00022191,2]
[370373023,1751983866426,-460.0,0.00022191,2]
[370373024,1751983866435,-460.0,0.00022191,2]
[370373025,1751983866444,-2636.16,0.00022191,2]
[370373026,1751983866453,-460.0,0.00022191,2]
[370373027,1751983866463,-460.0,0.00022191,2]
[370373028,1751983866473,-460.0,0.00022191,2]
[370373029,1751983866482,-1295.21,0.00022191,2]
[370373030,1751983866492,-6627.92,0.00022191,2]
[370373031,1751983866501,-460.0,0.00022191,2]
[370373032,1751983866510,-461.34,0.00022191,2]
[370373033,1751983866519,-460.0,0.00022191,2]
[370373034,1751983866529,-500.84,0.00022191,2]
[370373035,1751983866538,-3262.07,0.00022191,2]
[370373036,1751983866547,-460.0,0.00022191,2]
[370373037,1751983866557,-717.97,0.00022191,2]
[370373038,1751983866566,-1762.31,0.00022191,2]
[370373039,1751983866576,-460.0,0.00022191,2]
[370373040,1751983866586,-460.0,0.00022191,2]
[370373041,1751983866595,-903.25,0.00022191,2]
[370373042,1751983866604,-5827.89,0.00022191,2]
[370373043,1751983866614,-933.44,0.00022191,2]
[370373044,1751983866623,-1582.35,0.00022191,2]
[370373045,1751983866633,-460.0,0.00022191,2]
[370373046,1751983866643,-586.86,0.00022191,2]
[370373047,1751983866652,-1015.36,0.00022191,2]
[370373048,1751983866663,-460.0,0.00022191,2]
[370373049,1751983866673,-884.84,0.00022191,2]
[370373050,1751983866683,-850.53,0.00022191,2]
[370373051,1751983866693,-169.880293,0.00022191,7]
[370373052,1751983866703,-169.880293,0.00022191,7]
[370373053,1751983866714,-460.0,0.00022191,2]
[370373054,1751983866724,-460.0,0.00022191,2]
[370373055,1751983866734,-604.48,0.00022191,2]
[370373056,1751983866745,-944.75,0.00022191,2]
[370373057,1751983866756,-1927.49,0.00022191,2]
[370373058,1751983866767,-460.0,0.00022191,2]
[370373059,1751983866778,-4200.32,0.00022191,2]
[370373060,1751983866788,-1723.86,0.00022191,2]
[370373061,1751983866797,-1105.47,0.00022191,2]
[370373062,1751983866807,-1144.91755727,0.00022191,2]
[370373063,1751983867012,156.83658889,7.5e-07,2]
[370373064,1751983867358,-191.17252344,0.00018774,2]
[370373065,1751983867367,-223.99370372,0.00018774,2]
[370373066,1751983867376,-435.53191923,0.00019178,2]
[370373067,1751983867386,-460.0,0.00019178,2]
[370373068,1751983867396,-460.0,0.00019452,2]
[370373069,1751983867406,-4419.92552515,0.00020728,3]
[370373070,1751983867416,-4419.92552515,0.00020934,4]
[370373071,1751983867425,-4419.92552515,0.00021141,4]
[370373072,1751983867434,-4419.92552515,0.00021348,5]
[370373073,1751983867444,-568.56,0.00021369,2]
[370373074,1751983867453,-4419.92552515,0.00021555,5]
[370373075,1751983867462,-4419.92552515,0.00021762,5]
[370373076,1751983867472,-4419.92552515,0.00021969,6]
[370373077,1751983867481,-4419.92552515,0.00022176,6]
[370373078,1751983867490,-90.53244273,0.00022191,2]
[370373079,1751983867499,-460.0,0.00022191,2]
[370373080,1751983867508,-1392.07,0.00022191,2]
[370373081,1751983867517,-460.0,0.00022191,2]
[370373082,1751983867526,-4502.23,0.00022191,2]
[370373083,1751983867535,-471.85,0.00022191,2]
[370373084,1751983867544,-871.65,0.00022191,2]
[370373085,1751983867554,-460.0,0.00022191,2]
[370373086,1751983867563,-967.31,0.00022191,2]
[370373087,1751983867572,-1518.02,0.00022191,2]
[370373088,1751983867581,-460.0,0.00022191,2]
[370373089,1751983867590,-6907.07,0.00022191,2]
[370373090,1751983867599,-460.0,0.00022191,2]
[370373091,1751983867608,-611.77,0.00022191,2]
[370373092,1751983867618,-1153.7,0.00022191,2]
[370373093,1751983867627,-460.0,0.00022191,2]
[370373094,1751983867636,-967.64,0.00022191,2]
[370373095,1751983867646,-1098.97,0.00022191,2]
[370373096,1751983867655,-2085.57,0.00022191,2]
[370373097,1751983867666,-460.0,0.00022191,2]
[370373098,1751983867676,-463.65,0.00022191,2]
[370373099,1751983867686,-2119.43,0.00022191,2]
[370373100,1751983867695,-566.22,0.00022191,2]
[370373101,1751983867705,-1205.75,0.00022191,2]
[370373102,1751983867715,-460.0,0.00022191,2]
[370373103,1751983867724,-1948.08,0.00022191,2]
[370373104,1751983867733,-460.0,0.00022191,2]
[370373105,1751983867743,-2272.9,0.00022191,2]
[370373106,1751983867752,-4616.11,0.00022191,2]
[370373107,1751983867762,-4247.65,0.00022191,2]
[370373108,1751983867771,-460.0,0.00022191,2]
[370373109,1751983867780,-514.3,0.00022191,2]
[370373110,1751983867790,-653.52,0.00022191,2]
[370373111,1751983867800,-944.07,0.00022191,2]
[370373112,1751983867809,-847.56,0.00022191,2]
[370373113,1751983867818,-8781.99,0.00022191,2]
[370373114,1751983867828,-500.52,0.00022191,2]
[370373115,1751983867837,-1078.93,0.00022191,2]
[370373116,1751983867846,-1410.35,0.00022191,2]
[370373117,1751983867856,-460.0,0.00022191,2]
[370373118,1751983867866,-4842.26,0.00022191,2]
[370373119,1751983867875,-1487.97,0.00022191,2]
[370373120,1751983867885,-1632.92,0.00022191,2]
[370373121,1751983867895,-1835.67,0.00022191,2]
[370373122,1751983867904,-2207.44,0.00022191,2]
[370373123,1751983867915,-460.0,0.00022191,2]
[370373124,1751983867925,-500.0,0.00022249,2]
[370373125,1751983867934,-12206.83125438,0.00022265,2]
[370373126,1751983867944,-12500.0,0.00022281,2]
[370373127,1751983867954,-151.0,0.00022281,7]
[370373128,1751983867963,-151.0,0.00022281,7]
[370373129,1751983867973,-151.0,0.00022281,7]
[370373130,1751983867983,-151.0,0.00022281,7]
[370373131,1751983867993,-151.0,0.00022281,7]
[370373132,1751983868003,-151.0,0.00022281,7]
[370373133,1751983868012,-151.0,0.00022281,7]
[370373134,1751983868021,-151.0,0.00022281,7]
[370373135,1751983868031,-151.0,0.00022281,7]
[370373136,1751983868040,-587.0,0.00022311,2]
[370373137,1751983868049,-500.0,0.00022343,2]
[370373138,1751983868059,-4419.92552515,0.00022383,7]
[370373139,1751983868068,-2000.0,0.000224,2]
[370373140,1751983868078,-2000.0,0.000224,2]
[370373141,1751983868088,-151.0,0.000224,7]
[370373142,1751983868098,-151.054758,0.000224,7]
[370373143,1751983868107,-151.054758,0.000224,7]
[370373144,1751983868117,-522.41606942,0.0002246,2]
[370373145,1751983868126,-1011.87995822,0.0002246,2]
[370373146,1751983868135,-219.710735,0.00022465,7]
[370373147,1751983868149,-219.710735,0.00022465,7]
[370373148,1751983868159,-151.0,0.00022465,7]
[370373149,1751983868168,-204.380776,0.00022465,7]
[370373150,1751983868178,-151.0,0.00022465,7]
[370373151,1751983868190,-151.0,0.00022465,7]
[370373152,1751983868199,-253.7654,0.00022465,7]
[370373153,1751983868208,-253.7654,0.00022465,7]
[370373154,1751983868218,-204.102071,0.00022465,7]
[370373155,1751983868227,-204.102071,0.00022465,7]
[370373156,1751983868237,-288.592078,0.00022465,7]
[370373157,1751983868246,-288.592078,0.00022465,7]
[370373158,1751983868256,-241.314019,0.00022465,7]
[370373159,1751983868265,-241.314019,0.00022465,7]
[370373160,1751983868275,-151.0,0.00022465,7]
[370373161,1751983868284,-160.774938,0.00022465,7]
[370373162,1751983868293,-151.0,0.00022465,7]
[370373163,1751983868302,-608.54,0.00022465,2]
[370373164,1751983868312,-471.73,0.00022465,2]
[370373165,1751983868321,-460.0,0.00022465,2]
[370373166,1751983868330,-151.0,0.00022465,7]
[370373167,1751983868339,-460.0,0.00022465,2]
[370373168,1751983868349,-958.86,0.00022465,2]
[370373169,1751983868359,-460.0,0.00022465,2]
[370373170,1751983868368,-636.73,0.00022465,2]
[370373171,1751983868378,-460.0,0.00022465,2]
[370373172,1751983868387,-151.0,0.00022465,7]
[370373173,1751983868397,-769.3,0.00022465,2]
[370373174,1751983868407,-638.06,0.00022465,2]
[370373175,1751983868417,-460.0,0.00022465,2]
[370373176,1751983868426,-495.68,0.00022465,2]
[370373177,1751983868436,-460.0,0.00022465,2]
[370373178,1751983868445,-1163.67,0.00022465,2]
[370373179,1751983868454,-460.0,0.00022465,2]
[370373180,1751983868464,-460.0,0.00022465,2]
[370373181,1751983868473,-593.12,0.00022465,2]
[370373182,1751983868483,-756.52,0.00022465,2]
[370373183,1751983868492,-488.13,0.00022465,2]
[370373184,1751983868502,-1004.35,0.00022465,2]
[370373185,1751983868511,-460.0,0.00022465,2]
[370373186,1751983868520,-1589.41,0.00022465,2]
[370373187,1751983868530,-460.0,0.00022465,2]
[370373188,1751983868539,-460.0,0.00022465,2]
[370373189,1751983868548,-460.0,0.00022465,2]
[370373190,1751983868557,-2636.16,0.00022465,2]
[370373191,1751983868566,-460.0,0.00022465,2]
[370373192,1751983868576,-460.0,0.00022465,2]
[370373193,1751983868586,-460.0,0.00022465,2]
[370373194,1751983868596,-1295.21,0.00022465,2]
[370373195,1751983868605,-6627.92,0.00022465,2]
[370373196,1751983868615,-460.0,0.00022465,2]
[370373197,1751983868624,-461.34,0.00022465,2]
[370373198,1751983868634,-500.84,0.00022465,2]
[370373199,1751983868643,-3262.07,0.00022465,2]
[370373200,1751983868652,-460.0,0.00022465,2]
[370373201,1751983868662,-717.97,0.00022465,2]
[370373202,1751983868671,-1762.31,0.00022465,2]
[370373203,1751983868680,-460.0,0.00022465,2]
[370373204,1751983868690,-460.0,0.00022465,2]
[370373205,1751983868699,-903.25,0.00022465,2]
[370373206,1751983868708,-5827.89,0.00022465,2]
[370373207,1751983868718,-933.44,0.00022465,2]
[370373208,1751983868727,-1582.35,0.00022465,2]
[370373209,1751983868736,-460.0,0.00022465,2]
[370373210,1751983868745,-586.86,0.00022465,2]
[370373211,1751983868754,-1015.36,0.00022465,2]
[370373212,1751983868763,-236.64201642,0.00022465,2]
[370373213,1751983868772,-884.84,0.00022465,2]
[370373214,1751983868782,-850.53,0.00022465,2]
[370373215,1751983868791,-460.0,0.00022465,2]
[370373216,1751983868800,-460.0,0.00022465,2]
[370373217,1751983868810,-604.48,0.00022465,2]
[370373218,1751983868819,-944.75,0.00022465,2]
[370373219,1751983868829,-1927.49,0.00022465,2]
[370373220,1751983868838,-460.0,0.00022465,2]
[370373221,1751983868983,-4200.32,0.00022465,2]
[370373222,1751983868995,-1723.86,0.00022465,2]
[370373223,1751983869004,-1105.47,0.00022465,2]
[370373224,1751983869014,-1235.45,0.00022465,2]
[370373225,1751983869023,-460.0,0.00022465,2]
[370373226,1751983869033,-1392.07,0.00022465,2]
[370373227,1751983869043,-460.0,0.00022465,2]
[370373228,1751983869052,-4502.23,0.00022465,2]
[370373229,1751983869061,-471.85,0.00022465,2]
[370373230,1751983869071,-871.65,0.00022465,2]
[370373231,1751983869080,-460.0,0.00022465,2]
[370373232,1751983869089,-967.31,0.00022465,2]
[370373233,1751983869098,-1518.02,0.00022465,2]
[370373234,1751983869107,-460.0,0.00022465,2]
[370373235,1751983869116,-6907.07,0.00022465,2]
[370373236,1751983869125,-460.0,0.00022465,2]
[370373237,1751983869135,-611.77,0.00022465,2]
[370373238,1751983869148,-1153.7,0.00022465,2]
[370373239,1751983869158,-967.64,0.00022465,2]
[370373240,1751983869168,-1098.97,0.00022465,2]
[370373241,1751983869178,-2085.57,0.00022465,2]
[370373242,1751983869188,-460.0,0.00022465,2]
[370373243,1751983869196,-463.65,0.00022465,2]
[370373244,1751983869205,-2119.43,0.00022465,2]
[370373245,1751983869216,-566.22,0.00022465,2]
[370373246,1751983869226,-1205.75,0.00022465,2]
[370373247,1751983869235,-460.0,0.00022465,2]
[370373248,1751983869244,-1948.08,0.00022465,2]
[370373249,1751983869253,-460.0,0.00022465,2]
[370373250,1751983869262,-2272.9,0.00022465,2]
[370373251,1751983869270,-4616.11,0.00022465,2]
[370373252,1751983869279,-4247.65,0.00022465,2]
[370373253,1751983869288,-460.0,0.00022465,2]
[370373254,1751983869298,-514.3,0.00022465,2]
[370373255,1751983869309,-653.52,0.00022465,2]
[370373256,1751983869318,-944.07,0.00022465,2]
[370373257,1751983869327,-847.56,0.00022465,2]
[370373258,1751983869337,-8781.99,0.00022465,2]
[370373259,1751983869346,-500.52,0.00022465,2]
[370373260,1751983869355,-1078.93,0.00022465,2]
[370373261,1751983869365,-1410.35,0.00022465,2]
[370373262,1751983869374,-460.0,0.00022465,2]
[370373263,1751983869383,-4842.26,0.00022465,2]
[370373264,1751983869392,-1487.97,0.00022465,2]
[370373265,1751983869403,-1632.92,0.00022465,2]
[370373266,1751983869412,-1835.67,0.00022465,2]
[370373267,1751983869421,-2207.44,0.00022465,2]
[370373268,1751983869430,-370.00821656,0.00022465,2]
[370373269,1751983869440,-234.0,0.00022466,3]
[370373270,1751983869448,-300.0,0.00022466,2]
[370373271,1751983869457,-223.0315306,0.00022475,2]
[370373272,1751983869467,-352.485808,0.00022552,4]
[370373273,1751983869476,-1999.03,0.00022569,4]
[370373274,1751983869485,-4419.92552515,0.0002259,7]
[370373275,1751983869494,-160.0,0.000226,7]
[370373276,1751983869503,-848.40570879,0.000226,7]
[370373277,1751983869513,-12586.7184932,0.000226,7]
[370373278,1751983869523,-214.10276668,0.000226,7]
[370373279,1751983869532,-400.0,0.00022603,2]
[370373280,1751983869542,-500.0,0.00022616,2]
[370373281,1751983869552,-967.0,0.00022645,2]
[370373282,1751983869561,-646.0,0.00022645,2]
[370373283,1751983869571,-2153.0,0.00022645,2]
[370373284,1751983869580,-150.0,0.00022655,2]
[370373285,1751983869590,-297.77138809,0.00022658,2]
[370373286,1751983869600,-1999.03,0.00022669,6]
[370373287,1751983869609,-1038.124909,0.00022701,2]
[370373288,1751983869618,-3000.0,0.00022712,2]
[370373289,1751983869628,-3600.0,0.00022712,2]
[370373290,1751983869637,-1435.2880864,0.00022712,2]
[370373291,1751983869646,-250.0,0.00022721,2]
[370373292,1751983869656,-192.200271,0.00022739,7]
[370373293,1751983869665,-192.200271,0.00022739,7]
[370373294,1751983869675,-151.0,0.00022739,7]
[370373295,1751983869684,-151.0,0.00022739,7]
[370373296,1751983869694,-151.0,0.00022739,7]
[370373297,1751983869703,-151.0,0.00022739,7]
[370373298,1751983869713,-151.0,0.00022739,7]
[370373299,1751983869723,-608.54,0.00022739,2]
[370373300,1751983869733,-471.73,0.00022739,2]
[370373301,1751983869742,-460.0,0.00022739,2]
[370373302,1751983869752,-460.0,0.00022739,2]
[370373303,1751983869761,-958.86,0.00022739,2]
[370373304,1751983869770,-460.0,0.00022739,2]
[370373305,1751983869781,-636.73,0.00022739,2]
[370373306,1751983869790,-460.0,0.00022739,2]
[370373307,1751983869800,-769.3,0.00022739,2]
[370373308,1751983869809,-638.06,0.00022739,2]
[370373309,1751983869819,-460.0,0.00022739,2]
[370373310,1751983869829,-495.68,0.00022739,2]
[370373311,1751983869838,-460.0,0.00022739,2]
[370373312,1751983869848,-1163.67,0.00022739,2]
[370373313,1751983869858,-151.0,0.00022739,7]
[370373314,1751983869866,-460.0,0.00022739,2]
[370373315,1751983869876,-460.0,0.00022739,2]
[370373316,1751983869886,-593.12,0.00022739,2]
[370373317,1751983869896,-756.52,0.00022739,2]
[370373318,1751983869905,-488.13,0.00022739,2]
[370373319,1751983869915,-1004.35,0.00022739,2]
[370373320,1751983869924,-195.51125,0.00022739,7]
[370373321,1751983869933,-195.51125,0.00022739,7]
[370373322,1751983869942,-460.0,0.00022739,2]
[370373323,1751983869951,-1589.41,0.00022739,2]
[370373324,1751983869961,-22.34574474,0.00022739,2]
[370373325,1751983869983,-437.65425526,0.00022739,2]
[370373326,1751983869992,-460.0,0.00022739,2]
[370373327,1751983870002,-460.0,0.00022739,2]
[370373328,1751983870011,-2636.16,0.00022739,2]
[370373329,1751983870020,-460.0,0.00022739,2]
[370373330,1751983870030,-460.0,0.00022739,2]
[370373331,1751983870039,-460.0,0.00022739,2]
[370373332,1751983870048,-1295.21,0.00022739,2]
[370373333,1751983870058,-6627.92,0.00022739,2]
[370373334,1751983870067,-460.0,0.00022739,2]
[370373335,1751983870076,-461.34,0.00022739,2]
[370373336,1751983870086,-500.84,0.00022739,2]
[370373337,1751983870095,-3262.07,0.00022739,2]
[370373338,1751983870104,-460.0,0.00022739,2]
[370373339,1751983870114,-717.97,0.00022739,2]
[370373340,1751983870123,-1762.31,0.00022739,2]
[370373341,1751983870132,-460.0,0.00022739,2]
[370373342,1751983870144,-460.0,0.00022739,2]
[370373343,1751983870153,-903.25,0.00022739,2]
[370373344,1751983870162,-4532.77574474,0.00022739,2]
[370373345,1751983870924,206.31433198,0.00018211,2]
[370373346,1751983904004,500.0,0.00017533,2]
[370373347,1751983998832,300.0,0.0002739,120]
[370373348,1751984018960,652.0,0.0002739,120]
[370373349,1751984085416,3289.9761814,0.00017774,2]
[370373350,1751984241024,7794.77233276,0.0002527,60]
[370373351,1751984279873,-2459.56684977,0.00018672,2]
[370373352,1751984279905,-1766.83888104,0.00018673,2]
[370373353,1751984279935,-300.0,0.00018674,2]
[370373354,1751984280356,-1200.0,0.00018675,2]
[370373355,1751984280454,-4550.898025,0.00018676,2]
[370373356,1751984280469,-10000.0,0.00018676,2]
[370373357,1751984280523,-10000.0,0.00018676,2]
[370373358,1751984280740,-24.6987148,0.00018676,2]
[370373359,1751984280767,-9950.6025704,0.00018676,2]
[370373360,1751984281086,-500.0,0.00018771,2]
[370373361,1751984281119,-500.0,0.00018771,2]
[370373362,1751984281150,-642.44080094,0.00018771,2]
[370373363,1751984281180,-642.44080094,0.00018771,2]
[370373364,1751984281211,-500.0,0.00018771,2]
[370373365,1751984281241,-487.74101442,0.00018771,2]
[370373366,1751984281277,-500.0,0.00018771,2]
[370373367,1751984281308,-642.44080094,0.00018771,2]
[370373368,1751984281341,-500.0,0.00018771,2]
[370373369,1751984281400,-642.44080094,0.00018771,2]
[370373370,1751984281430,-500.0,0.00018771,2]
[370373371,1751984281459,-642.44080094,0.00018771,2]
[370373372,1751984281490,-642.44080094,0.00018771,2]
[370373373,1751984281521,-500.0,0.00018771,2]
[370373374,1751984281551,-642.44080094,0.00018771,2]
[370373375,1751984281585,-628.49353107,0.00018771,2]
[370373376,1751984281614,-642.44080094,0.00018771,2]
[370373377,1751984281748,-642.44080094,0.00018771,2]
[370373378,1751984281780,-642.44080094,0.00018771,2]
[370373379,1751984281810,-642.44080094,0.00018771,2]
[370373380,1751984281840,-642.44080094,0.00018771,2]
[370373381,1751984281872,-642.44080094,0.00018771,2]
[370373382,1751984281903,-642.44080094,0.00018771,2]
[370373383,1751984281933,-642.44080094,0.00018771,2]
[370373384,1751984281963,-363.3879859,0.00018771,2]
[370373385,1751984282168,-279.05281504,0.00018771,2]
[370373386,1751984282199,-642.44080094,0.00018771,2]
[370373387,1751984282228,-642.44080094,0.00018771,2]
[370373388,1751984282257,-642.44080094,0.00018771,2]
[370373389,1751984282291,-642.44080094,0.00018771,2]
[370373390,1751984282323,-642.44080094,0.00018771,2]
[370373391,1751984282354,-642.44080094,0.00018771,2]
[370373392,1751984282385,-642.44080094,0.00018771,2]
[370373393,1751984282507,-642.44080094,0.00018771,2]
[370373394,1751984282538,-642.44080094,0.00018771,2]
[370373395,1751984282569,-642.44080094,0.00018771,2]
[370373396,1751984282598,-642.44080094,0.00018771,2]
[370373397,1751984282628,-642.44080094,0.00018771,2]
[370373398,1751984282659,-642.44080094,0.00018771,2]
[370373399,1751984282689,-642.44080094,0.00018771,2]
[370373400,1751984282720,-363.3879859,0.00018771,2]
[370373401,1751984282863,-279.05281504,0.00018771,2]
[370373402,1751984282893,-642.44080094,0.00018771,2]
[370373403,1751984282924,-642.44080094,0.00018771,2]
[370373404,1751984282955,-642.44080094,0.00018771,2]
[370373405,1751984282987,-642.44080094,0.00018771,2]
[370373406,1751984283020,-642.44080094,0.00018771,2]